[Event "Najdorf Memorial-A 2022"]
[Site "Warsaw"]
[Date "2022.07.09"]
[Round "1.17"]
[White "Staniak, Mariusz"]
[Black "Maslanka, Wojciech"]
[Result "0-1"]
[ECO "A01"]
[WhiteElo "1777"]
[BlackElo "2000"]
[Annotator "NA RC"]
[PlyCount "68"]
[EventDate "2022.07.09"]
[EventType "swiss"]
[EventCountry "POL"]
[SourceTitle "playchess.com"]
[Source "ChessBase"]
[SourceQuality "1"]
[TimeControl "40/5400+30:1800+30"]

1. b3 {[%emt 0:00:05]} e5 {[%emt 0:01:24]} 2. Bb2 {[%emt 0:00:10]} Nc6 {[%emt 0:00:13]} 3. e3 {[%emt 0:00:14]} Nf6 {[%emt 0:02:23]} 4. Bb5 {[%emt 0:00:48]} d6 {[%emt 0:03:06]} 5. Ne2 {[%emt 0:01:59]} a6 {[%emt 0:05:37]} 6. Bxc6+ {[%emt 0:01:23]} bxc6 {[%emt 0:00:06]} 7. O-O {[%emt 0:02:27]} Be7 {[%emt 0:04:44]} 8. f4 {[%emt 0:07:00]} e4 {[%emt 0:00:57]} 9. d3 {[%emt 0:08:32]} O-O {[%emt 0:03:33]} 10. Nbc3 {[%emt 0:05:46]} exd3 {[%emt 0:07:14]} 11. cxd3 {[%emt 0:02:30]} d5 {[%emt 0:09:00]} 12. Rc1 {[%emt 0:09:56]} Bc5 {[%emt 0:01:05]} 13. Nd4 {[%emt 0:05:28]} Ng4 {[%emt 0:04:50]} 14. Qd2 {[%emt 0:06:55]} Bxd4 {[%emt 0:06:41]} 15. exd4 {[%emt 0:00:27]} Qf6 {[%emt 0:08:00]} 16. Nd1 {[%emt 0:07:02]} Re8 {[%emt 0:01:11]} 17. h3 {[%emt 0:03:31]} Nh6 {[%emt 0:00:12]} 18. Ne3 {[%emt 0:01:27]} Bd7 {[%emt 0:02:32]} 19. Rce1 {[%emt 0:03:07]} a5 {[%emt 0:01:25]} 20. a3 {[%emt 0:06:43]} Re7 {[%emt 0:04:29]} 21. Ng4 {[%emt 0:07:11]} Bxg4 {[%emt 0:01:52]} 22. Rxe7 {[%emt 0:02:29]} Qxe7 {[%emt 0:00:47]} 23. hxg4 {[%emt 0:00:51]} Nxg4 {[%emt 0:00:07]} 24. f5 {[%emt 0:04:18]} Re8 {[%emt 0:02:19]} 25. Bc1 {[%emt 0:01:43]} Qh4 {[%emt 0:09:16]} 26. Qf4 {[%emt 0:01:58]} Re1 {[%emt 0:00:55]} 27. Rxe1 {[%emt 0:05:24]} Qxe1+ {[%emt 0:00:33]} 28. Qf1 {[%emt 0:00:04]} Qc3 {[%emt 0:00:41]} 29. Qf4 {[%emt 0:01:30]} h5 {[%emt 0:00:08]} 30. Bd2 {[%emt 0:03:37]} Qxb3 {[%emt 0:00:27]} 31. Bxa5 {[%emt 0:00:10]} Qxa3 {[%emt 0:00:07]} 32. Bxc7 {[%emt 0:00:24]} Qa1+ {[%emt 0:00:12]} 33. Qf1 {[%emt 0:00:14]} Qxd4+ {[%emt 0:00:06]} 34. Kh1 {[%emt 0:00:55]} Qxd3 {[%emt 0:00:28]} 0-1

[Event "Najdorf Memorial-A 2022"]
[Site "Warsaw"]
[Date "2022.07.09"]
[Round "1.18"]
[White "Kulpa, Zuzanna"]
[Black "Basiaga, Sebastian"]
[Result "1/2-1/2"]
[ECO "D43"]
[WhiteElo "1985"]
[BlackElo "1770"]
[Annotator "NA COMBH"]
[PlyCount "59"]
[EventDate "2022.07.09"]
[EventType "swiss"]
[EventCountry "POL"]
[SourceTitle "playchess.com"]
[Source "ChessBase"]
[SourceQuality "1"]
[TimeControl "40/5400+30:1800+30"]

1. d4 {[%emt 0:00:01]} d5 {[%emt 0:00:06]} 2. c4 {[%emt 0:00:05]} c6 {[%emt 0:00:06]} 3. Nf3 {[%emt 0:00:05]} Nf6 {[%emt 0:00:09]} 4. Nc3 {[%emt 0:00:08]} e6 {[%emt 0:00:16]} 5. Bg5 {[%emt 0:00:12]} Be7 {[%emt 0:01:53]} 6. e3 {[%emt 0:00:15]} Nbd7 {[%emt 0:00:13]} 7. c5 {[%emt 0:01:09]} h6 {[%emt 0:24:17]} 8. Bf4 {[%emt 0:03:18]} O-O {[%emt 0:04:23]} 9. Bd3 {[%emt 0:01:47]} b6 {[%emt 0:05:32]} 10. b4 {[%emt 0:00:24]} a5 {[%emt 0:00:16]} 11. a3 {[%emt 0:00:08]} Nh5 {[%emt 0:20:58]} 12. Be5 {[%emt 0:04:04]} Nhf6 {[%emt 0:00:36]} 13. O-O {[%emt 0:04:07]} Nxe5 {[%emt 0:02:16]} 14. Nxe5 {[%emt 0:00:06]} Bd7 {[%emt 0:04:21]} 15. Qc2 {[%emt 0:03:49]} b5 {[%emt 0:03:48]} 16. f4 {[%emt 0:06:57]} Qc7 {[%emt 0:01:54]} 17. g4 {[%emt 0:03:44]} Be8 {[%emt 0:02:35]} 18. Qg2 {[%emt 0:06:00]} Nd7 {[%emt 0:01:25]} 19. Qh3 {[%emt 0:01:34]} f6 {[%emt 0:00:57]} 20. Ng6 {[%emt 0:02:39]} Bxg6 {[%emt 0:00:23]} 21. Bxg6 {[%emt 0:00:01]} Rfb8 {[%emt 0:02:29]} 22. Qh5 {[%emt 0:05:49]} Nf8 {[%emt 0:01:01]} 23. h4 {[%emt 0:05:16]} Nxg6 {[%emt 0:10:44]} 24. Qxg6 {[%emt 0:00:07]} Bf8 {[%emt 0:00:01]} 25. Ne2 {[%emt 0:07:50]} Qf7 {[%emt 0:00:29]} 26. Qc2 {[%emt 0:00:26]} Qb7 {[%emt 0:01:43]} 27. g5 {[%emt 0:04:27]} f5 {[%emt 0:00:47]} 28. Ng3 {[%emt 0:04:31]} hxg5 {[%emt 0:03:06]} 29. hxg5 {[%emt 0:00:20]} g6 {[%emt 0:00:06]} 30. Qc3 {[%emt 0:05:35]} 1/2-1/2

[Event "Najdorf Memorial-A 2022"]
[Site "Warsaw"]
[Date "2022.07.09"]
[Round "1.19"]
[White "Kotowicz, Kamil"]
[Black "Harazinska, Magdalena"]
[Result "1-0"]
[ECO "D02"]
[WhiteElo "1770"]
[BlackElo "1976"]
[Annotator "NA RC"]
[PlyCount "115"]
[EventDate "2022.07.09"]
[EventType "swiss"]
[EventCountry "POL"]
[SourceTitle "playchess.com"]
[Source "ChessBase"]
[SourceQuality "1"]
[TimeControl "40/5400+30:1800+30"]

1. d4 {[%emt 0:00:07]} d5 {[%emt 0:00:08]} 2. Nf3 {[%emt 0:00:07]} Nf6 {[%emt 0:00:12]} 3. Bf4 {[%emt 0:00:43]} c5 {[%emt 0:01:59]} 4. e3 {[%emt 0:01:21]} Nc6 {[%emt 0:00:25]} 5. c3 {[%emt 0:01:15]} Qb6 {[%emt 0:01:34]} 6. Qb3 {[%emt 0:01:00]} c4 {[%emt 0:00:38]} 7. Qxb6 {[%emt 0:00:24]} axb6 {[%emt 0:00:01]} 8. Na3 {[%emt 0:00:46]} Bf5 {[%emt 0:11:18]} 9. Nb5 {[%emt 0:04:38]} Ra5 {[%emt 0:03:32]} 10. a4 {[%emt 0:05:05]} Bc2 {[%emt 0:05:15]} 11. Ne5 {[%emt 0:03:03]} Nxe5 {[%emt 0:03:24]} 12. dxe5 {[%emt 0:00:08]} Nh5 {[%emt 0:04:57]} 13. Be2 {[%emt 0:01:22]} Nxf4 {[%emt 0:05:53]} 14. exf4 {[%emt 0:00:17]} e6 {[%emt 0:06:56]} 15. Bd1 {[%emt 0:01:08]} Bxd1 {[%emt 0:05:20]} 16. Kxd1 {[%emt 0:00:21]} Bc5 {[%emt 0:00:19]} 17. f3 {[%emt 0:04:47]} Ke7 {[%emt 0:07:41]} 18. Kc2 {[%emt 0:00:31]} f5 {[%emt 0:07:32]} 19. b4 {[%emt 0:03:07]} cxb3+ {[%emt 0:00:04]} 20. Kxb3 {[%emt 0:00:13]} h5 {[%emt 0:10:24]} 21. Rhd1 {[%emt 0:04:47]} Be3 {[%emt 0:03:24]} 22. g3 {[%emt 0:00:46]} h4 {[%emt 0:01:55]} 23. Rd3 {[%emt 0:00:47]} Bc5 {[%emt 0:03:54]} 24. g4 {[%emt 0:01:42]} Rf8 {[%emt 0:01:30]} 25. g5 {[%emt 0:02:07]} h3 {[%emt 0:00:43]} 26. Nd4 {[%emt 0:07:34]} Rfa8 {[%emt 0:00:37]} 27. Ra2 {[%emt 0:05:05]} Bxd4 {[%emt 0:00:58]} 28. cxd4 {[%emt 0:00:27]} b5 {[%emt 0:01:16]} 29. Rc2 {[%emt 0:01:30]} bxa4+ {[%emt 0:06:03]} 30. Ka3 {[%emt 0:01:31]} Rd8 {[%emt 0:03:09]} 31. g6 {[%emt 0:01:37]} Raa8 {[%emt 0:02:03]} 32. Rdc3 {[%emt 0:00:14]} b5 {[%emt 0:02:01]} 33. Rc5 {[%emt 0:02:25]} Rab8 {[%emt 0:00:40]} 34. Kb4 {[%emt 0:01:55]} Rd7 {[%emt 0:00:53]} 35. Rxb5 {[%emt 0:01:33]} Rxb5+ {[%emt 0:00:19]} 36. Kxb5 {[%emt 0:00:05]} a3 {[%emt 0:00:12]} 37. Ra2 {[%emt 0:00:34]} Ra7 38. Kb4 {[%emt 0:00:15]} Kd7 {[%emt 0:01:42]} 39. Rxa3 {[%emt 0:00:08]} Rb7+ {[%emt 0:00:34]} 40. Kc5 {[%emt 0:00:00]} Rc7+ {[%emt 0:00:00]} 41. Kb6 {[%emt 0:02:41]} Rc6+ {[%emt 0:00:29]} 42. Kb5 {[%emt 0:00:07]} Rc2 {[%emt 0:03:17]} 43. Ra7+ {[%emt 0:00:08]} Ke8 {[%emt 0:00:46]} 44. Rxg7 {[%emt 0:00:14]} Rxh2 {[%emt 0:00:05]} 45. Rh7 {[%emt 0:00:55]} Kf8 {[%emt 0:07:24]} 46. Kc5 {[%emt 0:00:25]} Rg2 {[%emt 0:12:02]} 47. Rxh3 {[%emt 0:01:08]} Rxg6 {[%emt 0:00:05]} 48. Kd6 {[%emt 0:00:07]} Kg8 {[%emt 0:00:38]} 49. Rh5 {[%emt 0:00:18]} Kf8 {[%emt 0:00:25]} 50. Rh7 {[%emt 0:00:14]} Rg3 {[%emt 0:00:25]} 51. Kxe6 {[%emt 0:00:58]} Rxf3 {[%emt 0:00:06]} 52. Kxf5 {[%emt 0:00:55]} Rd3 {[%emt 0:00:04]} 53. e6 {[%emt 0:00:10]} Rxd4 {[%emt 0:00:22]} 54. e7+ {[%emt 0:00:17]} Ke8 {[%emt 0:00:04]} 55. Ke6 {[%emt 0:00:11]} Re4+ {[%emt 0:00:07]} 56. Kd6 {[%emt 0:00:07]} d4 {[%emt 0:00:19]} 57. Rh8+ {[%emt 0:00:34]} Kf7 {[%emt 0:00:04]} 58. Rf8+ {[%emt 0:00:06]} 1-0

[Event "Najdorf Memorial-A 2022"]
[Site "Warsaw"]
[Date "2022.07.10"]
[Round "2.1"]
[White "Praczukowski, Stanislaw"]
[Black "Noe, Christopher"]
[Result "0-1"]
[ECO "D37"]
[WhiteElo "2055"]
[BlackElo "2505"]
[Annotator "TA"]
[PlyCount "46"]
[EventDate "2022.07.09"]
[EventType "swiss"]
[EventCountry "POL"]
[SourceTitle "playchess.com"]
[Source "ChessBase"]
[SourceQuality "1"]
[TimeControl "40/5400+30:1800+30"]

{[%evp 22,46,0,0,21,12,13,0,0,0,0,0,-20,-32,-27,-57,-50,-124,-125,-108,-102,-224,-200,-372,-368,-336,-341]} 1. d4 {[%emt 0:00:04]} Nf6 {[%emt 0:00:07]} 2. c4 {[%emt 0:00:13]} e6 {[%emt 0:00:05]} 3. Nf3 {[%emt 0:00:29]} d5 {[%emt 0:00:06]} 4. Nc3 {[%emt 0:01:39]} dxc4 {[%emt 0:00:56]} 5. e3 {[%emt 0:00:49]} a6 {[%emt 0:00:14]} 6. a4 {[%emt 0:00:36]} c5 {[%emt 0:03:32]} 7. Bxc4 {[%emt 0:02:18]} Nc6 {[%emt 0:00:40]} 8. O-O {[%emt 0:00:46]} cxd4 {[%emt 0:02:13]} 9. exd4 {[%emt 0:00:22]} Nb4 {[%emt 0:00:17]} 10. Bg5 {[%emt 0:05:47]} Be7 {[%emt 0:00:07]} 11. Ne5 {[%emt 0:05:00]} O-O {[%emt 0:00:14]} 12. Re1 {[%emt 0:06:15]} Nfd5 {[%emt 0:32:32][%cal Bf6d5,Bd5e7,Be7f5][%mdl 32] D27: Queen's Gambit Accepted: Classical main line: 7 e4!? and 7 a4.} 13. Bxe7 {[%emt 0:21:05]} (13. Nxd5 {seems wilder.} exd5 14. Bxe7 Qxe7 15. Ng6) 13... Nxe7 {[%emt 0:00:17]} 14. Qd2 {[%emt 0:03:02]} b6 {[%emt 0:11:11] [#] The position is equal.} 15. Ne4 $146 {[%emt 0:07:06]} ({Predecessor:} 15. Rad1 Qc7 16. Rc1 Qd8 17. Ne2 Ned5 18. Nf4 Bb7 19. Nxd5 Nxd5 20. Bxd5 Qxd5 21. Nf3 {0-1 (53) De Souza,C (1757)-Sekula,M (2016) Sao Bento do Sul 2013}) 15... a5 {[%emt 0:05:15]} 16. Ra3 {[%emt 0:13:33]} Nf5 {[%emt 0:03:44]} 17. Rd1 {[%emt 0:03:03]} Bb7 {[%emt 0:03:01]} 18. Ng5 {[%emt 0:11:01] [#] Black must now prevent Nexf7.} Bd5 {[%emt 0:02:59]} 19. Rh3 {[%emt 0:09:13]} (19. Bxd5 $15 Qxd5 20. Ngf3) 19... h6 $17 {[%emt 0:04:42]} 20. Ngf3 {[%emt 0:00:22]} Rc8 $40 {[%emt 0:10:59][%cal Ba8c8,Bc8c2,Bc2b2][%mdl 160] Black has strong attack.} 21. Bxd5 {[%emt 0:00:51] [#]} (21. b3 $17 {was necessary.}) 21... Rc2 $1 $19 {[%emt 0:01:42]} ({Don't take} 21... exd5 22. Qf4 Nd6 23. Ng4 $16) ({Worse is} 21... Qxd5 22. g4 Ne7 23. g5 $15) (21... Nxd5 22. Re1 $17) 22. Qf4 {[%emt 0:06:47]} (22. Qe1 Nxd5 23. Nd3) 22... Nxd5 {[%emt 0:00:27]} ({Weaker is} 22... Qxd5 23. g4 Nd6 24. g5 $11) 23. Qe4 {[%emt 0:00:16]} Rxb2 {[%emt 0:01:55] White got outplayed after the opening.  Weighted Error Value: White=0.36/Black=0.02 (flawless)} 0-1

[Event "Najdorf Memorial-A 2022"]
[Site "Warsaw"]
[Date "2022.07.10"]
[Round "2.1"]
[White "Pesko, Tomasz"]
[Black "Danielyan, Vahe"]
[Result "0-1"]
[ECO "D02"]
[WhiteElo "1830"]
[BlackElo "2295"]
[Annotator "RC"]
[PlyCount "62"]
[EventDate "2022.07.09"]
[EventType "swiss"]
[EventCountry "POL"]
[SourceTitle "playchess.com"]
[Source "ChessBase"]
[SourceQuality "1"]
[TimeControl "40/5400+30:1800+30"]

1. d4 {[%emt 0:00:02]} Nf6 {[%emt 0:00:07]} 2. Bf4 {[%emt 0:00:10]} d5 {[%emt 0:00:52]} 3. Nf3 {[%emt 0:00:19]} c5 {[%emt 0:00:08]} 4. e3 {[%emt 0:00:13]} cxd4 {[%emt 0:00:06]} 5. exd4 {[%emt 0:00:09]} Nc6 {[%emt 0:00:07]} 6. c3 {[%emt 0:02:42]} g6 {[%emt 0:04:14]} 7. Be2 {[%emt 0:00:51]} Bg7 {[%emt 0:00:27]} 8. O-O {[%emt 0:00:13]} O-O {[%emt 0:00:08]} 9. Nbd2 {[%emt 0:00:36]} Bf5 {[%emt 0:00:11]} 10. Ne5 {[%emt 0:02:19]} Nd7 {[%emt 0:01:30]} 11. Ndf3 {[%emt 0:02:14]} Ndxe5 {[%emt 0:03:43]} 12. dxe5 {[%emt 0:00:59]} Be4 {[%emt 0:01:29]} 13. Qd2 {[%emt 0:03:00]} Qb6 {[%emt 0:00:34]} 14. Rfe1 {[%emt 0:03:14]} Rad8 {[%emt 0:00:09]} 15. Rad1 {[%emt 0:03:37]} e6 {[%emt 0:01:46]} 16. Bg5 {[%emt 0:05:53]} f6 {[%emt 0:06:34]} 17. exf6 {[%emt 0:02:41]} Bxf6 {[%emt 0:01:27]} 18. Be3 {[%emt 0:04:08]} Qc7 {[%emt 0:00:04]} 19. Ng5 {[%emt 0:03:42]} Bxg5 {[%emt 0:03:55]} 20. Bxg5 {[%emt 0:00:11]} Rxf2 {[%emt 0:00:18]} 21. Kxf2 {[%emt 0:02:04]} Qxh2 {[%emt 0:00:07]} 22. Bf3 {[%emt 0:06:32]} Rf8 {[%emt 0:00:14]} 23. Ke3 {[%emt 0:18:22]} Ne5 {[%emt 0:00:11]} 24. Be2 {[%emt 0:06:59]} Qg3+ {[%emt 0:02:59]} 25. Kd4 {[%emt 0:02:39]} Nc6+ {[%emt 0:00:15]} 26. Kc5 {[%emt 0:00:20]} Qc7 {[%emt 0:00:11]} 27. Rf1 {[%emt 0:13:19]} Qb6+ {[%emt 0:00:13]} 28. Kd6 {[%emt 0:00:09]} Nb8+ {[%emt 0:00:09]} 29. Ke7 {[%emt 0:00:34]} Qc7+ {[%emt 0:00:07]} 30. Kxe6 {[%emt 0:00:14]} Qd7+ {[%emt 0:00:04]} 31. Ke5 {[%emt 0:00:20]} Nc6# 0-1

[Event "Najdorf Memorial-A 2022"]
[Site "Warsaw"]
[Date "2022.07.10"]
[Round "2.2"]
[White "Jarmula, Lukasz"]
[Black "Goraj, Barbara"]
[Result "1-0"]
[ECO "B31"]
[WhiteElo "2452"]
[BlackElo "2035"]
[Annotator "RC"]
[PlyCount "167"]
[EventDate "2022.07.09"]
[EventType "swiss"]
[EventCountry "POL"]
[SourceTitle "playchess.com"]
[Source "ChessBase"]
[SourceQuality "1"]
[TimeControl "40/5400+30:1800+30"]

1. e4 {[%emt 0:03:42]} c5 {[%emt 0:00:12]} 2. Nf3 {[%emt 0:00:06]} Nc6 {[%emt 0:00:15]} 3. Bb5 {[%emt 0:00:30]} g6 {[%emt 0:00:16]} 4. O-O {[%emt 0:00:06]} Bg7 {[%emt 0:00:33]} 5. Re1 {[%emt 0:00:07]} e5 {[%emt 0:03:25]} 6. Bxc6 {[%emt 0:00:18]} dxc6 {[%emt 0:00:14]} 7. d3 {[%emt 0:00:07]} Qc7 {[%emt 0:01:19]} 8. a3 {[%emt 0:02:14]} a5 {[%emt 0:03:09]} 9. Be3 {[%emt 0:00:31]} b6 {[%emt 0:01:29]} 10. Nbd2 {[%emt 0:00:13]} Nf6 {[%emt 0:02:38]} 11. Nc4 {[%emt 0:00:58]} Nd7 {[%emt 0:17:27]} 12. Qc1 {[%emt 0:00:47]} h6 {[%emt 0:02:04]} 13. a4 {[%emt 0:06:01]} Nf8 {[%emt 0:02:23]} 14. b4 {[%emt 0:06:23]} b5 {[%emt 0:15:13]} 15. axb5 {[%emt 0:04:04]} cxb5 {[%emt 0:00:14]} 16. Na3 {[%emt 0:00:17]} cxb4 {[%emt 0:02:39]} 17. Nxb5 {[%emt 0:00:08]} Qd7 {[%emt 0:02:27]} 18. c4 {[%emt 0:01:43]} Ne6 {[%emt 0:06:28]} 19. Qb2 {[%emt 0:09:56]} f6 {[%emt 0:08:28]} 20. d4 {[%emt 0:01:48]} exd4 {[%emt 0:00:27]} 21. Nfxd4 {[%emt 0:00:08]} Nxd4 {[%emt 0:02:27]} 22. Bxd4 {[%emt 0:00:08]} O-O {[%emt 0:01:51]} 23. Bc5 {[%emt 0:02:07]} Re8 {[%emt 0:02:02]} 24. Bxb4 {[%emt 0:02:58]} Bb7 {[%emt 0:02:41]} 25. Bc3 {[%emt 0:06:20]} Bxe4 {[%emt 0:04:21]} 26. f3 {[%emt 0:01:00]} Bd3 {[%emt 0:01:40]} 27. Red1 {[%emt 0:05:45]} Rad8 {[%emt 0:11:43]} 28. Bxf6 {[%emt 0:09:00]} Bxf6 {[%emt 0:04:09]} 29. Qxf6 {[%emt 0:00:16]} Qg7 {[%emt 0:01:50]} 30. Qxg7+ {[%emt 0:06:17]} Kxg7 {[%emt 0:00:05]} 31. Nc7 {[%emt 0:00:09]} Re5 {[%emt 0:01:15]} 32. f4 {[%emt 0:03:14]} Re4 {[%emt 0:00:17]} 33. Rxa5 {[%emt 0:01:19]} Rd7 {[%emt 0:00:44]} 34. Ra7 {[%emt 0:01:33]} Kf7 {[%emt 0:00:19]} 35. c5 {[%emt 0:02:54]} Ree7 {[%emt 0:00:39]} 36. Ra5 {[%emt 0:00:40]} Rxc7 {[%emt 0:00:34]} 37. Rxd3 {[%emt 0:00:06]} Re1+ {[%emt 0:00:29]} 38. Kf2 {[%emt 0:00:07]} Rc1 {[%emt 0:00:05]} 39. Rd5 {[%emt 0:00:25]} Rc2+ {[%emt 0:00:55]} 40. Kf3 {[%emt 0:00:00]} Rc3+ {[%emt 0:00:00]} 41. Kg4 {[%emt 0:03:28]} Rc2 {[%emt 0:04:14]} 42. Kh3 {[%emt 0:04:18]} Rc3+ {[%emt 0:16:26]} 43. g3 {[%emt 0:00:23]} Rc2 {[%emt 0:00:19]} 44. f5 {[%emt 0:02:02]} g5 {[%emt 0:03:31]} 45. Ra6 {[%emt 0:00:39]} R2xc5 {[%emt 0:02:16]} 46. Rxc5 {[%emt 0:00:32]} Rxc5 {[%emt 0:00:10]} 47. Kg4 {[%emt 0:00:37]} Kg7 {[%emt 0:05:04]} 48. Rg6+ {[%emt 0:00:43]} Kh7 {[%emt 0:00:07]} 49. Kh5 {[%emt 0:00:10]} Rxf5 {[%emt 0:00:31]} 50. Rxh6+ {[%emt 0:00:06]} Kg7 {[%emt 0:00:14]} 51. Rg6+ {[%emt 0:00:06]} Kh7 {[%emt 0:00:40]} 52. Rxg5 {[%emt 0:00:08]} Rf2 {[%emt 0:00:22]} 53. h4 {[%emt 0:00:07]} Rf3 {[%emt 0:00:09]} 54. g4 {[%emt 0:01:19]} Rf6 {[%emt 0:01:25]} 55. Ra5 {[%emt 0:00:29]} Rf7 {[%emt 0:01:04]} 56. g5 {[%emt 0:00:48]} Kg7 {[%emt 0:01:01]} 57. Kg4 {[%emt 0:00:06]} Rc7 {[%emt 0:00:56]} 58. Rf5 {[%emt 0:00:06]} Rc1 {[%emt 0:00:13]} 59. Rf3 {[%emt 0:00:48]} Rg1+ {[%emt 0:00:20]} 60. Rg3 {[%emt 0:00:06]} Ra1 {[%emt 0:00:38]} 61. Rb3 {[%emt 0:00:46]} Ra4+ {[%emt 0:00:24]} 62. Kh5 {[%emt 0:00:15]} Ra7 {[%emt 0:00:13]} 63. Rb4 {[%emt 0:00:05]} Rc7 {[%emt 0:00:07]} 64. Kg4 {[%emt 0:00:07]} Ra7 {[%emt 0:00:47]} 65. h5 {[%emt 0:00:15]} Rc7 {[%emt 0:01:04]} 66. h6+ {[%emt 0:00:12]} Kh7 {[%emt 0:00:44]} 67. Kh5 {[%emt 0:00:12]} Rc5 {[%emt 0:00:10]} 68. Rb7+ {[%emt 0:00:14]} Kg8 {[%emt 0:00:33]} 69. Re7 {[%emt 0:01:10]} Rc1 {[%emt 0:01:12]} 70. Kg6 {[%emt 0:00:24]} Rc6+ {[%emt 0:00:07]} 71. Kf5 {[%emt 0:00:04]} Rc1 {[%emt 0:00:53]} 72. Kf6 {[%emt 0:00:44]} Rf1+ {[%emt 0:00:22]} 73. Kg6 {[%emt 0:00:06]} Rf8 {[%emt 0:00:06]} 74. Re6 {[%emt 0:00:49]} Rb8 {[%emt 0:00:41]} 75. Kf5 {[%emt 0:00:41]} Rb1 {[%emt 0:00:16]} 76. Re8+ {[%emt 0:01:08]} Kh7 {[%emt 0:00:34]} 77. Re7+ {[%emt 0:00:07]} Kg8 {[%emt 0:00:14]} 78. Re4 {[%emt 0:01:15]} Rf1+ {[%emt 0:01:01]} 79. Rf4 {[%emt 0:00:10]} Ra1 {[%emt 0:00:24]} 80. g6 {[%emt 0:00:11]} Ra5+ {[%emt 0:00:28]} 81. Kg4 {[%emt 0:00:07]} Ra8 {[%emt 0:00:32]} 82. Kg5 {[%emt 0:00:13]} Ra5+ {[%emt 0:00:58]} 83. Rf5 {[%emt 0:00:07]} Ra8 {[%emt 0:00:26]} 84. h7+ {[%emt 0:00:25]} 1-0

[Event "Najdorf Memorial-A 2022"]
[Site "Warsaw"]
[Date "2022.07.10"]
[Round "2.2"]
[White "Markiewicz, Jerzy"]
[Black "Haliniak, Wojciech"]
[Result "1-0"]
[ECO "C11"]
[WhiteElo "2205"]
[BlackElo "1827"]
[Annotator "RC"]
[PlyCount "77"]
[EventDate "2022.07.09"]
[EventType "swiss"]
[EventCountry "POL"]
[SourceTitle "playchess.com"]
[Source "ChessBase"]
[SourceQuality "1"]
[TimeControl "40/5400+30:1800+30"]

1. e4 {[%emt 0:00:04]} e6 {[%emt 0:00:33]} 2. d4 {[%emt 0:00:19]} d5 {[%emt 0:00:08]} 3. Nc3 {[%emt 0:00:23]} Nf6 {[%emt 0:00:27]} 4. e5 {[%emt 0:00:07]} Nfd7 {[%emt 0:00:04]} 5. Nce2 {[%emt 0:00:08]} c5 {[%emt 0:00:17]} 6. c3 {[%emt 0:00:05]} Nc6 {[%emt 0:01:11]} 7. Nf3 {[%emt 0:00:16]} Qb6 {[%emt 0:07:17]} 8. a3 {[%emt 0:00:10]} f6 {[%emt 0:01:58]} 9. b4 {[%emt 0:11:12]} fxe5 {[%emt 0:07:40]} 10. bxc5 {[%emt 0:01:00]} Nxc5 {[%emt 0:13:03]} 11. Nxe5 {[%emt 0:06:32]} Nxe5 {[%emt 0:00:39]} 12. dxe5 {[%emt 0:00:12]} Qc7 {[%emt 0:08:10]} 13. f4 {[%emt 0:14:20]} Ne4 {[%emt 0:02:33]} 14. Qd3 {[%emt 0:00:11]} g5 {[%emt 0:07:30]} 15. fxg5 {[%emt 0:01:17]} Bc5 {[%emt 0:04:10]} 16. Be3 {[%emt 0:02:11]} Bxe3 {[%emt 0:01:07]} 17. Qxe3 {[%emt 0:00:06]} Qxe5 {[%emt 0:00:16]} 18. Ng3 {[%emt 0:06:32]} Qxc3+ {[%emt 0:06:44]} 19. Qxc3 {[%emt 0:00:04]} Nxc3 {[%emt 0:00:06]} 20. Rc1 {[%emt 0:00:05]} d4 {[%emt 0:00:09]} 21. Bd3 {[%emt 0:00:27]} O-O {[%emt 0:01:38]} 22. Nh5 {[%emt 0:04:15]} e5 {[%emt 0:07:10]} 23. Nf6+ {[%emt 0:00:05]} Kg7 {[%emt 0:00:43]} 24. O-O {[%emt 0:01:19]} Be6 {[%emt 0:04:34]} 25. Rf2 {[%emt 0:00:05]} Rac8 {[%emt 0:08:01]} 26. Re1 {[%emt 0:00:42]} Nd5 {[%emt 0:02:54]} 27. Nh5+ {[%emt 0:02:21]} Kg8 {[%emt 0:01:01]} 28. Rxf8+ {[%emt 0:00:48]} Kxf8 {[%emt 0:02:54]} 29. Rxe5 {[%emt 0:00:06]} Bg8 {[%emt 0:01:58]} 30. Re4 {[%emt 0:03:33]} Rc3 {[%emt 0:01:43]} 31. Rxd4 {[%emt 0:00:07]} Rxa3 {[%emt 0:00:25]} 32. Nf6 {[%emt 0:01:33]} Nxf6 {[%emt 0:03:14]} 33. gxf6 {[%emt 0:00:07]} Be6 {[%emt 0:00:20]} 34. Bxh7 {[%emt 0:01:04]} Kf7 {[%emt 0:00:27]} 35. Rf4 {[%emt 0:00:11]} Ra2 {[%emt 0:02:01]} 36. g4 {[%emt 0:00:16]} Bxg4 {[%emt 0:01:29]} 37. Bg6+ {[%emt 0:00:31]} Kf8 {[%emt 0:02:52]} 38. Rxg4 {[%emt 0:00:07]} Ra6 {[%emt 0:00:27]} 39. Rf4 {[%emt 0:00:09]} 1-0